bitfinex-derivatives/quotes_ETHF0:USTF0_20250626
["timestamp","ask_amount","ask_price","bid_price","bid_amount"]
[1750928688979,1.72339126,2488.3,2488.2,0.8033]
[1750928689288,0.80337,2488.2,2488.1,0.80337]
[1750928689487,26.57257,2488.2,2488.1,0.80337]
[1750928689780,25.7692,2488.2,2488.1,0.80337]
[1750928689980,26.57255,2488.2,2488.1,0.80337]
[1750928690382,27.49379362,2488.2,2488.1,0.80337]
[1750928690773,26.16059362,2488.2,2488.1,0.80337]
[1750928691580,25.35724362,2488.2,2488.1,0.80337]
[1750928692786,24.436,2488.2,2488.1,0.80337]
[1750928693790,25.23935,2488.2,2488.1,0.80337]
[1750928694990,27.6438,2488.2,2487.6,4.40931651]
[1750928695286,0.80347,2487.9,2487.8,0.80345]
[1750928696184,0.80344,2488.0,2487.9,0.80342]
[1750928700994,0.80348,2487.9,2487.8,0.80346]
[1750928701397,0.80344,2488.0,2487.9,0.80342]
[1750928702198,0.80348,2487.9,2487.8,0.80346]
[1750928703990,10.29517,2488.2,2488.1,0.80338]
[1750928704191,29.36998919,2488.2,2488.1,0.80338]
[1750928705398,4.93298919,2488.2,2488.1,0.80338]
[1750928705696,29.36998919,2488.2,2488.1,0.80338]
[1750928710607,28.56661919,2488.2,2488.1,0.80338]
[1750928710801,0.92181919,2488.2,2488.1,0.80338]
[1750928711009,25.35781919,2488.2,2488.1,0.80338]
[1750928712607,0.92181919,2488.2,2488.1,0.80338]
[1750928713003,0.92181919,2488.2,2488.1,2.92318]
[1750928713506,27.6438,2488.5,2488.4,0.80329]
[1750928713808,28.56722131,2488.5,2488.4,0.80329]
[1750928714007,29.37048131,2488.5,2488.4,0.80329]
[1750928714410,0.80335,2488.3,2488.2,0.80331]
[1750928714603,1.72677131,2488.3,2488.2,0.80331]
[1750928714797,0.92342131,2488.3,2488.2,0.80331]
[1750928718710,1.72674131,2488.3,2488.2,0.80331]
[1750928722219,0.92342131,2488.3,2488.2,0.80331]
[1750928723418,24.433,2488.4,2488.3,0.80332]
[1750928723612,25.3572331,2488.4,2488.3,0.80332]
[1750928723811,25.3572331,2488.4,2488.3,2.12782]
[1750928725412,0.9242331,2488.4,2488.3,2.12782]
[1750928725611,24.433,2488.5,2488.4,0.80329]
[1750928725811,25.35735008,2488.5,2488.4,2.82869]
[1750928726011,25.35735008,2488.5,2488.4,1.50419]
[1750928728516,26.16061008,2488.5,2488.4,1.50419]
[1750928729817,25.35735008,2488.5,2488.4,1.50419]
[1750928730321,26.16061008,2488.5,2488.4,0.80329]
[1750928730822,25.35735008,2488.5,2488.4,0.80329]
[1750928734222,26.16061008,2488.5,2488.4,0.80329]
[1750928734422,25.35735008,2488.5,2488.4,0.80329]
[1750928736120,25.35335008,2488.5,2488.4,0.80329]
[1750928738129,0.92435008,2488.5,2488.4,1.46849]
[1750928738322,25.35335008,2488.5,2488.4,2.79849]
[1750928738517,25.35335008,2488.5,2488.4,1.46849]
[1750928740229,0.92435008,2488.5,2488.4,4.01647786]
[1750928741128,27.6358,2488.8,2488.7,0.80319]
[1750928741324,28.56099865,2488.8,2488.7,0.80319]
[1750928741534,0.92519865,2488.8,2488.7,0.80319]
[1750928741927,0.92519865,2488.8,2488.7,1.46839]
[1750928745737,0.80306,2489.2,2489.1,0.80301]
[1750928746032,27.34101,2489.3,2489.2,0.80303]
[1750928747334,0.80306,2489.2,2489.1,0.80304]
[1750928747533,4.78294786,2489.2,2489.1,0.80304]
[1750928750141,2.23496,2489.2,2489.1,0.80304]
[1750928750635,1.4319,2489.2,2489.1,0.80304]
[1750928750832,2.23493,2489.2,2489.1,0.80304]
[1750928754042,0.80312,2489.1,2489.0,0.80306]
[1750928754338,2.19392,2489.1,2489.0,0.80306]
[1750928756144,0.80313,2489.0,2488.9,0.8031]
[1750928756335,25.90333,2489.0,2488.9,0.8031]
[1750928757243,0.80316,2488.9,2488.8,0.80314]
[1750928757446,0.80316,2488.8,2488.7,0.80315]
[1750928757636,0.80326,2488.5,2488.4,4.01106]
[1750928757942,25.33818948,2488.5,2488.4,4.01106]
[1750928758441,25.33818948,2488.5,2488.4,6.55904786]
[1750928758637,24.419,2488.7,2488.6,0.80322]
[1750928758841,25.33819943,2488.7,2488.6,0.80322]
[1750928760038,25.39342013,2488.7,2488.6,0.80322]
[1750928761848,25.39342013,2488.7,2488.6,3.35120786]
[1750928763348,25.39342013,2488.7,2488.6,0.80322]
[1750928765545,25.39342013,2488.7,2488.6,2.20102]
[1750928765742,0.97442013,2488.7,2488.6,2.20102]
[1750928767646,0.0552207,2488.7,2488.6,2.20102]
[1750928768547,1.77863218,2488.7,2488.6,0.80322]
[1750928768748,2.48563218,2488.7,2488.6,0.80322]
[1750928769251,3.85723218,2488.7,2488.6,0.80322]
[1750928769552,1.68244218,2488.7,2488.6,0.80322]
[1750928770645,1.77863218,2488.7,2488.6,0.80322]
[1750928772848,0.97544218,2488.7,2488.6,3.35120786]
[1750928773655,0.97544218,2488.7,2488.6,4.06940786]
[1750928781154,0.97544218,2488.7,2488.6,1.52142]
[1750928781554,0.97544218,2488.7,2488.6,4.06940786]
[1750928787258,1.77863218,2488.7,2488.6,0.80322]
[1750928788257,0.97544218,2488.7,2488.6,0.80322]
[1750928789753,1.77863218,2488.7,2488.6,0.80322]
[1750928789955,0.97544218,2488.7,2488.6,0.80322]
[1750928791464,0.97544218,2488.7,2488.6,3.35120786]
[1750928792761,1.77863218,2488.7,2488.6,0.80322]
[1750928795462,0.97544218,2488.7,2488.6,3.35120786]
[1750928800171,0.97544218,2488.7,2488.6,4.06910786]
[1750928800470,0.97544218,2488.7,2488.6,5.47940786]
[1750928801874,0.97544218,2488.7,2488.6,4.06910786]
[1750928806981,0.97544218,2488.7,2488.6,0.80322]
[1750928808277,1.77863218,2488.7,2488.6,0.80322]
[1750928811289,0.80323,2488.6,2488.4,3.2078]
[1750928811477,2.14083,2488.6,2488.5,0.80323]
[1750928811771,3.11765525,2488.6,2488.5,0.80323]
[1750928813084,2.31442525,2488.6,2488.5,0.80323]
[1750928813683,3.11765525,2488.6,2488.5,0.80323]
[1750928813885,0.97682525,2488.6,2488.5,0.80323]
[1750928816382,1.78005525,2488.6,2488.5,0.80323]
[1750928817489,3.09505525,2488.6,2488.5,0.80323]
[1750928818890,0.97682525,2488.6,2488.5,3.35121786]
[1750928819092,1.78005525,2488.6,2488.5,3.35121786]
[1750928819291,0.8033,2488.5,2488.4,0.80326]
[1750928819492,4.01115,2488.2,2488.1,2.40046651]
[1750928819688,2.00847,2488.1,2487.2,4.00243127]
[1750928819992,2.00847,2488.1,2487.0,0.6837]
[1750928819993,0.80365,2487.3,2487.1,0.80369]
[1750928820186,3.2078,2487.4,2487.0,2.0592]
[1750928820385,0.95967409,2487.3,2487.0,2.0592]
[1750928820579,1.76335409,2487.2,2487.1,2.54798786]
[1750928820782,0.80371,2487.1,2487.0,0.6837]
[1750928820990,10.95347409,2487.1,2486.3,3.2078]
[1750928821192,0.80394,2486.4,2486.3,3.2078]
[1750928821494,3.2078,2486.7,2486.3,3.2078]
[1750928821794,4.01166,2486.7,2486.6,2.49276716]
[1750928821994,0.8039,2486.5,2486.4,3.35191786]
[1750928822691,4.01165,2486.7,2486.6,0.80387]
[1750928822881,0.80372,2487.1,2486.6,7.76542786]
[1750928823086,25.423,2487.3,2487.0,2.54798786]
[1750928823287,25.423,2487.3,2486.7,0.80383]
[1750928823490,0.80384,2486.8,2486.7,0.80384]
[1750928823690,0.8038,2486.9,2486.8,0.80381]
[1750928823891,0.80383,2486.8,2486.6,3.35182786]
[1750928824086,0.80383,2486.8,2486.7,0.80384]
[1750928824293,0.80387,2486.6,2486.5,9.9948]
[1750928824791,0.80387,2486.6,2486.5,3.2078]
[1750928825895,0.7111,2486.9,2486.5,3.2078]
[1750928826191,0.80383,2486.8,2486.5,3.2078]
[1750928826393,0.80379,2486.9,2486.8,2.54798786]
[1750928826592,0.80379,2486.9,2486.8,3.35179786]
[1750928826995,0.80377,2487.0,2486.9,0.80377]
[1750928827589,4.01153,2487.1,2487.0,0.80374]
[1750928827790,34.2369,2487.2,2486.8,2.54798786]
[1750928827791,34.2369,2487.2,2486.8,0.6902]
[1750928828087,0.80379,2486.9,2486.8,0.8038]
[1750928828294,3.2078,2487.1,2486.7,3.23418786]
[1750928828487,5.21732,2486.8,2486.1,5.75578786]
[1750928828693,0.80399,2486.3,2486.1,6.55980786]
[1750928829086,0.80399,2486.3,2486.2,0.804]
[1750928829291,25.384,2486.5,2486.1,4.01181]
[1750928829495,28.5918,2486.5,2486.1,2.54798786]
[1750928829693,0.80405,2486.1,2486.0,3.35204786]
[1750928829893,0.80407,2486.0,2485.9,1.49428]
[1750928830094,0.80405,2486.1,2486.0,0.80406]
[1750928830295,2.68628,2486.4,2485.9,1.49428]
[1750928830296,0.80407,2486.0,2485.9,1.49428]
[1750928830599,26.17205,2486.1,2486.0,0.80405]
[1750928830794,25.368,2486.1,2486.0,0.80405]
[1750928831301,4.01182,2486.2,2486.1,0.80403]
[1750928831493,25.365,2486.3,2486.2,0.804]
[1750928832599,0.6764,2486.4,2486.3,0.80397]
[1750928832798,26.15094,2486.4,2486.3,0.80397]
[1750928832992,9.9978,2486.5,2486.3,0.80397]
[1750928832993,3.2078,2486.5,2486.4,0.80394]
[1750928834198,3.2078,2486.5,2486.4,2.85724]
[1750928834400,3.2078,2486.5,2486.4,0.80394]
[1750928834696,3.2078,2486.5,2486.2,0.6902]
[1750928834995,2.54798786,2486.4,2485.8,3.2078]
[1750928835299,0.80402,2486.2,2486.1,0.80401]
[1750928835599,26.13202,2486.2,2486.1,0.80401]
[1750928835789,25.328,2486.2,2486.1,0.80401]
[1750928835992,3.2078,2486.5,2486.4,0.80394]
[1750928836198,2.54798786,2487.2,2486.4,0.80394]
[1750928836199,25.434,2486.6,2486.5,0.8039]
[1750928836499,0.80382,2486.8,2486.7,0.80384]
[1750928836699,0.80386,2486.7,2486.6,0.80385]
[1750928837992,0.80376,2487.0,2486.6,2.00966]
[1750928838194,0.80376,2487.0,2486.9,0.80377]
[1750928838702,6.791,2487.1,2487.0,0.80374]
[1750928839002,32.196,2487.1,2487.0,0.80374]
[1750928840503,32.2,2487.1,2487.0,0.80374]
[1750928840898,3.2078,2487.2,2487.1,0.80371]
[1750928841099,28.5938,2487.2,2487.1,0.80371]
[1750928841403,7.59462,2487.4,2487.3,0.8036]
[1750928841700,32.97762,2487.4,2487.3,0.8036]
[1750928841893,0.80364,2487.3,2487.2,0.6726]
[1750928842198,0.80371,2487.1,2487.0,0.80373]
[1750928842400,0.80381,2486.9,2486.8,0.80379]
[1750928842595,27.3853,2487.1,2486.7,4.5297]
[1750928842801,0.80389,2486.6,2486.5,0.80386]
[1750928843003,0.8039,2486.5,2486.4,4.01171]
[1750928843306,0.80389,2486.6,2486.5,0.80387]
[1750928843802,0.8039,2486.5,2486.4,4.01172]
[1750928845506,0.8039,2486.5,2486.4,4.01174]
[1750928846805,0.8039,2486.5,2486.4,3.2078]
[1750928847207,31.29781,2486.7,2486.2,0.80398]
[1750928847408,0.804,2486.3,2486.2,0.80398]
[1750928848509,0.80396,2486.4,2486.3,0.80393]
[1750928849802,1.81847174,2486.4,2486.3,0.80393]
[1750928850398,1.01451174,2486.4,2486.3,0.80393]
[1750928850812,1.81845174,2486.4,2486.3,0.80393]
[1750928852111,1.01451174,2486.4,2486.3,0.80393]
[1750928852512,1.01451174,2486.4,2486.3,6.01945231]
[1750928852716,1.01451174,2486.4,2486.3,5.62734338]
[1750928853917,1.74e-06,2486.4,2486.3,10.62734338]
[1750928854111,3.9097,2487.4,2487.0,2.00933]
[1750928854307,0.80374,2487.1,2487.0,0.80372]
[1750928854506,0.80374,2487.1,2486.8,2.72851]
[1750928854813,0.80374,2487.1,2487.0,0.80371]
[1750928855014,2.91097,2487.3,2487.2,0.80368]
[1750928856917,0.80371,2487.2,2487.1,0.80369]
[1750928857215,2.14461,2487.2,2487.1,0.80369]
[1750928857417,0.80374,2487.1,2487.0,0.80372]
[1750928857715,2.14464,2487.1,2487.0,0.80372]
[1750928859010,0.80376,2487.0,2486.9,0.80374]
[1750928859212,1.46236,2487.0,2486.9,0.80374]
[1750928861210,26.73536,2487.0,2486.9,0.80374]
[1750928861411,25.9316,2487.0,2486.9,0.80374]
[1750928861611,25.273,2487.0,2486.9,0.80374]
[1750928862025,25.273,2487.0,2486.9,2.13244]
[1750928862317,0.672,2487.4,2487.3,0.80364]
[1750928862509,26.04856,2487.6,2487.5,0.80358]
[1750928862709,26.05256,2487.6,2487.5,0.41160669]
[1750928863322,26.05256,2487.6,2487.4,1.46639]
[1750928863323,0.80358,2487.5,2487.4,1.46639]
[1750928863517,0.80366,2487.4,2487.3,0.80362]
[1750928863713,0.8036,2487.5,2487.4,0.80358]
[1750928865116,26.0296,2487.5,2487.4,0.80358]
[1750928866021,27.03858342,2487.5,2487.4,0.80358]
[1750928866521,27.03858342,2487.5,2487.3,0.80362]
[1750928866522,0.80366,2487.4,2487.3,0.80362]
[1750928867619,0.80368,2487.2,2487.1,1.5052]
[1750928868319,2.70965,2487.3,2486.8,3.2078]
[1750928868516,0.80377,2486.9,2486.8,4.72736]
[1750928869325,25.195,2487.1,2486.8,3.9236]
[1750928869521,25.99873,2487.1,2487.0,0.80374]
[1750928869730,0.80377,2487.0,2486.9,0.80375]
[1750928870026,25.99873,2487.1,2487.0,0.80374]
[1750928870647,25.195,2487.1,2487.0,0.80374]
[1750928871643,0.80366,2487.3,2487.2,0.80368]
[1750928871849,25.18,2487.3,2487.2,6.01920231]
[1750928872139,3.2078,2487.8,2487.7,0.80352]
[1750928872350,25.174,2488.0,2487.9,0.80345]
[1750928872643,26.18204681,2488.0,2487.9,0.80345]
[1750928872944,26.98546681,2488.0,2487.9,0.80345]
[1750928873150,2.00865,2487.9,2487.3,0.6568]
[1750928873444,0.80357,2487.6,2487.5,0.80356]
[1750928873845,0.80364,2487.4,2487.3,0.80361]
[1750928874236,1.81168681,2487.4,2487.3,0.80361]
[1750928875149,0.80364,2487.3,2487.2,4.68275]
[1750928875447,1.00804681,2487.3,2487.2,4.68275]
[1750928875649,1.81168681,2487.3,2487.2,4.68275]
[1750928877646,1.00804681,2487.3,2487.2,4.68275]
[1750928877844,1.00804681,2487.3,2487.2,1.47495]
[1750928879349,1.81168681,2487.3,2487.2,1.47495]
[1750928879546,1.81168681,2487.3,2487.2,0.6713]
[1750928879748,1.81168681,2487.3,2487.2,1.47498]
[1750928880252,1.81168681,2487.3,2487.2,0.6713]
[1750928881052,0.80368,2487.2,2487.1,1.46818]
[1750928881347,0.80374,2487.0,2486.9,4.71505]
[1750928881756,1.81178681,2487.0,2486.9,4.71505]
[1750928881947,1.00804681,2487.0,2486.9,4.71505]
[1750928883250,25.9217,2487.2,2487.1,0.80371]
[1750928883448,26.90784862,2487.2,2487.1,0.80371]
[1750928883952,0.80374,2487.1,2487.0,0.80373]
[1750928884155,0.80374,2487.0,2486.9,3.2078]
[1750928884451,0.8039,2486.5,2486.4,0.6965]
[1750928884639,0.80394,2486.4,2486.3,1.48706]
[1750928885148,0.80394,2486.4,2486.3,0.6831]
[1750928885345,0.80394,2486.4,2486.2,0.6718]
[1750928885346,0.80397,2486.3,2486.2,0.6718]
[1750928885546,1.78937725,2486.3,2486.2,1.4758]
[1750928885742,0.80396,2486.4,2486.3,0.80397]
[1750928885943,1.78935514,2486.4,2486.3,0.80397]
[1750928886546,0.80397,2486.3,2486.2,1.47578]
[1750928886757,1.78892968,2486.3,2486.2,1.47578]
[1750928886949,0.804,2486.2,2486.1,4.01182]
[1750928887149,0.804,2486.2,2486.1,4.01181]
[1750928887150,1.78888988,2486.2,2486.1,4.01181]
[1750928887549,0.80409,2486.0,2485.8,1.3611]
[1750928887749,0.80405,2486.1,2486.0,0.80404]
[1750928887953,0.80402,2486.2,2486.1,0.80401]
[1750928888254,1.78843927,2486.2,2486.1,0.80401]
[1750928888456,0.80402,2486.2,2486.1,0.80401]
[1750928888753,0.80405,2486.1,2486.0,0.80404]
[1750928888951,0.80402,2486.2,2486.1,0.80401]
[1750928889150,1.78824161,2486.2,2486.1,0.80401]
[1750928889350,0.80402,2486.2,2486.1,0.80401]
[1750928889953,1.78956209,2486.2,2486.1,0.80401]
[1750928890258,0.80412,2485.9,2485.8,0.8041]
[1750928890459,26.00012,2485.9,2485.8,0.8041]
[1750928890650,36.874,2485.9,2485.4,3.2078]
[1750928890849,2.01041,2485.7,2485.0,3.2078]
[1750928891048,3.2078,2485.1,2484.3,2.01155]
[1750928891354,0.80446,2484.8,2484.7,0.80447]
[1750928891561,25.191,2484.8,2484.5,3.2078]
[1750928891757,25.191,2484.8,2484.4,0.6576]
[1750928891947,0.8045,2484.7,2484.5,0.80455]
[1750928892153,0.80453,2484.6,2484.2,3.9156]
[1750928892354,2.11651,2484.7,2484.2,3.9156]
[1750928892555,1.312,2484.7,2484.6,0.80452]
[1750928892956,14.73532231,2484.7,2483.9,3.2078]
[1750928893157,3.2078,2484.4,2483.9,4.01253]
[1750928893357,33.237,2484.3,2484.2,0.80465]
[1750928893658,3.2078,2484.7,2483.9,8.42332231]
[1750928893859,31.928,2484.6,2483.9,3.2078]
[1750928894059,3.2078,2484.3,2483.9,3.2078]
[1750928894262,3.2078,2484.0,2483.0,2.01259]
[1750928894462,34.99146212,2484.2,2483.1,2.01252]
[1750928894463,3.2078,2483.7,2483.1,2.01252]
[1750928894759,25.263,2483.6,2483.3,5.21552231]
[1750928895059,5.21552231,2484.4,2483.3,5.21552231]
[1750928895060,25.269,2484.1,2483.5,3.2078]
[1750928895258,25.269,2484.1,2484.0,0.80471]
[1750928895957,2.01065,2485.5,2484.0,0.80471]
[1750928895958,3.2078,2484.6,2484.5,0.80454]
[1750928896161,0.80456,2484.5,2483.8,3.2078]
[1750928896357,1.3851,2484.4,2484.1,0.80465]
[1750928896571,1.3851,2484.4,2484.2,0.80464]
[1750928896861,3.2078,2484.3,2483.8,1.4107]
[1750928897162,3.2078,2484.3,2483.5,3.8794]
[1750928897163,31.932,2484.2,2484.0,0.80468]
[1750928897363,31.929,2484.1,2483.6,3.37951]
[1750928897567,31.929,2484.1,2484.0,0.80469]
[1750928899063,3.2078,2484.3,2484.2,0.80465]
[1750928899369,28.4498,2484.3,2484.2,0.80465]
[1750928900269,0.80457,2484.5,2484.2,0.80465]
[1750928900457,25.234,2484.4,2484.3,0.80462]
[1750928901257,3.2078,2484.6,2484.1,5.21552231]
[1750928901565,3.2078,2484.6,2484.4,0.80457]
[1750928901566,25.227,2484.5,2484.4,0.80457]
[1750928903365,3.2078,2484.6,2484.5,0.80455]
[1750928903566,25.214,2484.6,2484.5,0.80455]
[1750928903760,3.2078,2484.9,2484.4,8.42332231]
[1750928903961,26.0115,2484.7,2484.6,0.80452]
[1750928904265,25.207,2484.7,2484.6,0.80452]
[1750928905267,0.80456,2484.5,2484.4,0.80458]
[1750928905468,26.01151,2484.7,2484.4,0.80457]
[1750928905767,0.80453,2484.6,2484.4,0.80458]
[1750928905967,26.5096,2484.7,2484.6,0.80452]
[1750928906166,26.01149,2484.7,2484.5,0.80453]
[1750928906362,0.80452,2484.6,2484.5,0.80453]
[1750928906562,0.80451,2484.7,2484.6,0.80452]
[1750928906757,25.98751,2484.7,2484.6,0.80452]
[1750928907366,25.98751,2484.7,2484.5,0.80453]
[1750928907571,25.98751,2484.7,2484.6,0.80452]
[1750928907762,25.98749,2484.7,2484.6,0.80452]
[1750928908062,25.183,2484.7,2484.3,2.12549]
[1750928908472,0.80455,2484.5,2484.4,0.80457]
[1750928910068,0.80454,2484.6,2484.5,0.80453]
[1750928910864,25.96154,2484.6,2484.5,0.80453]
[1750928911373,0.80457,2484.5,2484.4,0.80455]
[1750928912775,0.80462,2484.4,2484.3,0.8046]
[1750928913570,0.80457,2484.5,2484.4,0.80455]
[1750928913967,0.80461,2484.4,2484.1,3.2078]
[1750928914173,25.129,2484.3,2484.2,0.80462]
[1750928915474,25.126,2484.4,2484.3,0.80462]
[1750928915977,25.126,2484.4,2484.3,2.23502]
[1750928916476,25.93058,2484.4,2484.3,2.23502]
[1750928916677,25.93058,2484.4,2484.3,0.80462]
[1750928917271,30.126,2484.4,2483.8,3.2078]
[1750928917474,5.2197,2483.9,2483.2,3.2078]
[1750928917675,0.80486,2483.6,2483.4,0.80487]
[1750928918177,0.80486,2483.6,2483.4,1.51837]
[1750928918485,25.19,2483.8,2483.4,0.7135]
[1750928918678,1.78176723,2483.7,2483.6,0.80484]
[1750928918987,0.80482,2483.7,2483.6,0.80484]
[1750928919181,0.80481,2483.8,2483.7,0.80478]
[1750928919382,0.80484,2483.7,2483.6,0.80482]
[1750928919584,0.80484,2483.6,2483.5,2.90086]
[1750928919781,1.78303591,2483.6,2483.5,2.90086]
[1750928919980,0.97819591,2483.6,2483.5,2.90086]
[1750928920389,0.80478,2483.8,2483.7,0.80478]
[1750928920587,0.80474,2484.0,2483.9,0.80472]
[1750928920888,28.3968,2484.2,2484.1,0.80468]
[1750928921082,30.18178448,2484.2,2484.1,0.80468]
[1750928921482,0.80471,2484.1,2484.0,0.80469]
[1750928921681,1.78504448,2484.1,2484.0,0.80469]
[1750928922980,0.98033448,2484.1,2484.0,2.11239]
[1750928923592,1.78501448,2484.1,2484.0,2.11239]
[1750928923790,0.98033448,2484.1,2484.0,2.11239]
[1750928923991,1.78501448,2484.1,2484.0,2.11239]
[1750928924886,1.78501448,2484.1,2484.0,1.3077]
[1750928925092,1.78501448,2484.1,2483.5,7.3865]
[1750928925093,2.01185,2484.0,2483.5,7.3865]
[1750928925294,31.36005448,2483.9,2483.5,0.6965]
[1750928925490,0.98033448,2483.8,2483.5,0.6965]
[1750928925690,1.78513448,2483.8,2483.7,0.80481]
[1750928926191,25.175,2484.1,2484.0,0.80468]
[1750928926395,26.15620228,2484.1,2484.0,0.80468]
[1750928926592,26.96092228,2484.1,2484.0,0.80468]
[1750928926790,1.78592228,2484.1,2484.0,0.80468]
[1750928927095,26.18320228,2484.1,2484.0,0.80468]
[1750928927395,26.98788228,2484.1,2484.0,0.4121922]
[1750928927582,26.18320228,2484.1,2484.0,0.4121922]
[1750928927783,26.18820228,2484.1,2484.0,0.4121922]
[1750928927983,3.2078,2484.3,2484.1,0.80468]
[1750928928189,4.01242,2484.3,2484.2,0.6553]
[1750928928390,4.18912746,2484.3,2484.2,1.45995]
[1750928928699,0.98132746,2484.3,2484.2,1.45995]
[1750928929998,0.98132746,2484.3,2484.2,2.86985]
[1750928931599,0.80484,2483.6,2483.5,3.2078]
[1750928931796,4.18897522,2483.6,2482.4,3.2078]
[1750928932092,4.18897522,2483.6,2482.1,4.00243127]
[1750928932093,2.0126,2483.0,2482.1,3.2078]
[1750928932302,3.2078,2482.7,2481.9,2.8371]
[1750928932595,0.80529,2482.3,2482.1,3.2078]
[1750928932796,0.80526,2482.3,2482.1,3.2078]
[1750928932996,28.777,2482.5,2482.1,3.2078]
[1750928933292,0.80525,2482.4,2482.1,4.01311]
[1750928933498,28.77,2482.7,2482.1,8.42332231]
[1750928933696,0.80518,2482.6,2482.4,3.2078]
[1750928933899,0.8052,2482.5,2482.4,3.2078]
[1750928934200,29.57515,2482.7,2482.4,4.013]
[1750928934595,28.755,2482.9,2482.4,3.2078]
[1750928934806,28.721,2482.9,2482.7,3.2078]
[1750928934994,28.721,2483.0,2482.7,3.2078]
[1750928935190,0.97769144,2482.9,2482.6,0.6617]
[1750928935396,0.80512,2482.8,2482.6,0.6617]
[1750928935701,0.80507,2482.9,2482.6,1.46685]
[1750928935898,0.80513,2482.7,2482.6,0.6617]
[1750928936100,0.80523,2482.4,2482.3,8.995]
[1750928936302,0.80526,2482.3,2482.2,3.2078]
[1750928936601,0.80531,2482.2,2482.1,8.995]
[1750928936800,0.80531,2482.2,2482.0,3.8695]
[1750928936801,0.8053,2482.2,2482.0,3.8695]
[1750928937006,0.8053,2482.2,2480.3,23.31492419]
[1750928937007,4.33923277,2482.1,2480.8,3.2078]
[1750928937213,4.33923277,2482.1,2478.7,5.61218055]
[1750928937214,3.2078,2480.9,2479.9,3.2078]
[1750928937505,3.2078,2480.1,2479.2,3.2078]
[1750928937802,3.2078,2480.1,2478.7,3.2078]
[1750928937803,3.2078,2479.5,2478.7,3.2078]
[1750928937999,3.2078,2479.5,2478.9,0.80634]
[1750928938000,3.2078,2479.2,2478.9,0.80634]
[1750928938306,3.2078,2478.4,2477.2,3.19241557]
[1750928938512,3.2078,2477.3,2476.7,5.21552231]
[1750928938802,40.8,2478.5,2476.9,1.3371]
[1750928939007,3.2078,2477.0,2475.7,3.2078]
[1750928939213,3.2078,2476.8,2476.1,1.3371]
[1750928939508,3.2078,2477.3,2476.7,3.2078]
[1750928939699,0.80669,2478.0,2477.1,6.02245231]
[1750928939899,0.80671,2477.9,2477.3,3.2078]
[1750928940101,3.2078,2477.8,2477.4,9.003]
[1750928940301,3.2078,2477.8,2477.5,7.1620188]
[1750928940597,0.7148,2479.1,2476.9,9.003]
[1750928940598,3.2078,2477.6,2476.9,9.003]
[1750928940805,5.7290188,2478.4,2477.4,1.433]
[1750928941004,29.017,2478.6,2477.4,1.433]
[1750928941005,4.01462,2477.5,2477.4,1.433]
[1750928941208,0.80691,2477.3,2475.9,3.2078]
[1750928941398,3.2078,2477.3,2477.0,0.80696]
[1750928941604,3.2078,2477.6,2477.1,1.433]
[1750928941809,3.2078,2477.9,2477.2,3.2078]
[1750928942017,3.2078,2478.2,2477.5,3.2078]
[1750928942304,0.80645,2478.7,2478.0,0.80664]
[1750928942508,3.2078,2478.5,2478.2,5.7290188]
[1750928942807,3.2078,2478.8,2478.3,3.2078]
[1750928943005,3.2078,2478.8,2478.3,1.3107]
[1750928943206,3.2078,2478.8,2478.7,0.80643]
[1750928943416,3.2078,2479.1,2479.0,0.80632]
[1750928943705,3.2078,2479.1,2479.0,9.81234]
[1750928944012,3.2078,2479.5,2479.4,0.80619]
[1750928944202,3.2078,2479.5,2479.1,1.3107]
[1750928944407,3.2078,2479.4,2479.3,0.80624]
[1750928944607,3.2078,2479.4,2479.3,2.11694]
[1750928945400,3.2078,2479.7,2479.6,0.80614]
[1750928945603,3.2078,2479.7,2479.6,9.81214]
[1750928945806,0.8058,2480.7,2479.6,9.006]
[1750928946002,3.2078,2479.9,2479.8,0.80607]
[1750928946311,3.2078,2480.2,2480.1,0.80598]
[1750928946515,0.6752,2481.1,2480.3,0.80588]
[1750928946704,3.2078,2480.4,2479.7,1.4239]
[1750928946902,3.2078,2480.7,2479.9,3.2078]
[1750928947104,3.2078,2480.4,2480.3,0.80591]
[1750928947512,3.2078,2480.7,2480.3,3.2078]
[1750928947715,3.2078,2480.7,2480.6,0.80581]
[1750928947909,3.2078,2480.7,2480.6,9.81281]
[1750928948115,3.2078,2480.8,2480.5,0.80582]
[1750928948318,3.2078,2480.8,2480.6,9.007]
[1750928949315,3.2078,2480.8,2480.4,0.80587]
[1750928949510,3.2078,2480.8,2480.5,9.81283]
[1750928949718,3.2078,2480.8,2480.6,9.007]
[1750928950011,4.01355,2480.8,2480.6,9.007]
[1750928950318,4.01356,2480.8,2480.6,9.007]
[1750928950511,3.2078,2480.8,2480.6,9.81281]
[1750928950708,3.2078,2480.8,2480.7,0.80578]
[1750928950910,8.2078,2480.8,2479.5,3.2078]
[1750928951207,7.98287271,2481.0,2480.0,0.806]
[1750928951208,3.2078,2480.2,2480.0,0.806]
[1750928951408,3.2078,2480.2,2480.1,9.007]
[1750928951807,3.2078,2480.2,2480.1,11.23688]
[1750928952011,3.2078,2480.2,2480.1,10.4309]
[1750928952714,3.2078,2480.2,2480.1,11.23688]
[1750928953414,3.2078,2480.7,2480.1,15.4309]
[1750928953616,3.2078,2480.7,2480.6,0.80581]
[1750928953809,3.2078,2480.7,2480.6,9.81281]
[1750928955616,4.01358,2480.7,2480.6,9.007]
[1750928955815,3.2078,2480.7,2480.6,9.007]
[1750928956015,4.01358,2480.7,2480.6,9.006]
[1750928956520,0.80585,2480.5,2480.3,0.80589]
[1750928956717,0.80585,2480.5,2480.4,0.80588]